[Event "118th SUI-ch 2018"]
[Site "Lenzerheide"]
[Date "2018.07.12"]
[Round "1"]
[White "Pelletier, Yannick"]
[Black "Kurmann, Oliver"]
[Result "1-0"]
[ECO "A05"]
[WhiteElo "2551"]
[BlackElo "2451"]
[Annotator "RC"]
[PlyCount "61"]
[EventDate "2018.07.12"]
[EventType "tourn"]
[EventCountry "SUI"]
[SourceTitle "playchess.com"]
[Source "ChessBase"]
[SourceQuality "1"]
[TimeControl "40/5400+30:1800+30"]

1. Nf3 {[%emt 0:00:00]} Nf6 {[%emt 0:00:00]} 2. c4 {[%emt 0:00:00]} b6 {[%emt 0:00:00]} 3. Nc3 {[%emt 0:00:01]} Bb7 {[%emt 0:00:00]} 4. d4 {[%emt 0:00:15]} e6 {[%emt 0:00:06]} 5. a3 {[%emt 0:00:29]} d5 {[%emt 0:00:10]} 6. Bg5 {[%emt 0:00:19]} Be7 {[%emt 0:00:16]} 7. Qa4+ {[%emt 0:00:39]} Bc6 {[%emt 0:00:38]} 8. Qc2 {[%emt 0:00:43]} dxc4 {[%emt 0:00:38]} 9. e3 {[%emt 0:00:21]} b5 {[%emt 0:01:49]} 10. a4 {[%emt 0:00:27]} a6 {[%emt 0:11:47]} 11. axb5 {[%emt 0:00:16]} axb5 {[%emt 0:00:07]} 12. Rxa8 {[%emt 0:00:04]} Bxa8 {[%emt 0:00:07]} 13. Nxb5 {[%emt 0:00:09]} c5 {[%emt 0:04:40]} 14. dxc5 {[%emt 0:02:01]} Qa5+ {[%emt 0:01:35]} 15. Nc3 {[%emt 0:00:15]} Bxf3 {[%emt 0:13:46]} 16. gxf3 {[%emt 0:00:44]} Qxc5 {[%emt 0:00:06]} 17. Qa4+ {[%emt 0:08:24]} Nbd7 {[%emt 0:01:26]} 18. Bxf6 {[%emt 0:11:56]} Bxf6 {[%emt 0:03:08]} 19. Ne4 {[%emt 0:06:15]} Qb6 {[%emt 0:05:54]} 20. Bxc4 {[%emt 0:15:15]} Qc7 {[%emt 0:47:54]} 21. Bb5 {[%emt 0:13:37]} Qc1+ {[%emt 0:03:55]} 22. Ke2 {[%emt 0:04:03]} Qxh1 {[%emt 0:00:02]} 23. Bxd7+ {[%emt 0:00:09]} Kd8 {[%emt 0:00:04]} 24. Bc6 {[%emt 0:06:58]} Kc7 {[%emt 0:01:04]} 25. Qa6 {[%emt 0:00:14]} Rb8 {[%emt 0:01:24]} 26. Qa7+ {[%emt 0:00:07]} Kxc6 {[%emt 0:00:02]} 27. Qxb8 {[%emt 0:00:07]} Qb1 {[%emt 0:00:59]} 28. b4 {[%emt 0:13:16]} h5 {[%emt 0:01:40]} 29. Qd6+ {[%emt 0:02:10]} Kb5 {[%emt 0:00:08]} 30. Qc5+ {[%emt 0:01:26]} Ka6 {[%emt 0:00:10]} 31. Nd6 {[%emt 0:01:59]} 1-0

[Event "118th SUI-ch 2018"]
[Site "Lenzerheide"]
[Date "2018.07.12"]
[Round "1"]
[White "Gallagher, Joseph G"]
[Black "Baenziger, Fabian"]
[Result "1/2-1/2"]
[ECO "B24"]
[WhiteElo "2434"]
[BlackElo "2382"]
[Annotator "NA RC"]
[PlyCount "62"]
[EventDate "2018.07.12"]
[EventType "tourn"]
[EventCountry "SUI"]
[SourceTitle "playchess.com"]
[Source "ChessBase"]
[SourceQuality "1"]
[TimeControl "40/5400+30:1800+30"]

1. e4 {[%emt 0:00:00]} c5 {[%emt 0:00:00]} 2. Nc3 {[%emt 0:00:00]} Nc6 {[%emt 0:00:00]} 3. Bb5 {[%emt 0:00:22]} Nd4 {[%emt 0:00:55]} 4. Bc4 {[%emt 0:00:14]} e6 {[%emt 0:04:25]} 5. Nge2 {[%emt 0:02:26]} a6 {[%emt 0:02:50]} 6. d3 {[%emt 0:07:19]} b5 {[%emt 0:00:33]} 7. Bb3 {[%emt 0:00:06]} Nxb3 {[%emt 0:03:43]} 8. axb3 {[%emt 0:00:06]} Bb7 {[%emt 0:00:51]} 9. Ng3 {[%emt 0:01:35]} Nf6 {[%emt 0:09:10]} 10. e5 {[%emt 0:09:25]} Nd5 {[%emt 0:04:32]} 11. Nxd5 {[%emt 0:30:29]} Bxd5 {[%emt 0:02:12]} 12. O-O {[%emt 0:00:10]} f5 {[%emt 0:11:34]} 13. exf6 {[%emt 0:16:59]} Qxf6 {[%emt 0:00:38]} 14. Nh5 {[%emt 0:03:04]} Qf7 {[%emt 0:05:39]} 15. Be3 {[%emt 0:06:11]} Bd6 {[%emt 0:02:22]} 16. c4 {[%emt 0:01:36]} Bc6 {[%emt 0:00:23]} 17. d4 {[%emt 0:01:33]} cxd4 {[%emt 0:03:47]} 18. Bxd4 {[%emt 0:03:27]} Qg6 $15 {[%emt 0:01:18]} 19. Ng3 {[%emt 0:05:13]} O-O {[%emt 0:00:50]} 20. Re1 {[%emt 0:03:31]} Rf5 {[%emt 0:08:37]} 21. Bb6 {[%emt 0:02:28]} Bxg3 {[%emt 0:04:16]} 22. fxg3 {[%emt 0:01:39]} h5 {[%emt 0:00:15]} 23. Qd2 {[%emt 0:00:46]} Raf8 {[%emt 0:01:50]} 24. Rf1 {[%emt 0:02:48]} Rxf1+ {[%emt 0:01:12]} 25. Rxf1 {[%emt 0:00:01]} Rxf1+ {[%emt 0:00:07]} 26. Kxf1 {[%emt 0:00:05]} Qb1+ {[%emt 0:00:04]} 27. Kf2 {[%emt 0:00:34]} Qe4 {[%emt 0:00:15]} 28. Qe2 {[%emt 0:00:41]} Qxg2+ {[%emt 0:01:04]} 29. Ke1 {[%emt 0:00:04]} Qh1+ {[%emt 0:01:25]} 30. Kd2 {[%emt 0:00:11]} Qb1 {[%emt 0:00:22]} 31. Qe5 {[%emt 0:01:11]} Be4 {[%emt 0:06:59]} 1/2-1/2

[Event "118th SUI-ch 2018"]
[Site "Lenzerheide"]
[Date "2018.07.12"]
[Round "1"]
[White "Gaehwiler, Gabriel"]
[Black "Georgiadis, Nico"]
[Result "1/2-1/2"]
[ECO "E10"]
[WhiteElo "2419"]
[BlackElo "2526"]
[Annotator "RC"]
[PlyCount "91"]
[EventDate "2018.07.12"]
[EventType "tourn"]
[EventCountry "SUI"]
[SourceTitle "playchess.com"]
[Source "ChessBase"]
[SourceQuality "1"]
[TimeControl "40/5400+30:1800+30"]

1. d4 {[%emt 0:00:00]} Nf6 {[%emt 0:00:09]} 2. c4 {[%emt 0:00:58]} e6 {[%emt 0:00:08]} 3. Nf3 {[%emt 0:00:09]} d5 {[%emt 0:00:07]} 4. g3 {[%emt 0:00:10]} Bb4+ {[%emt 0:00:40]} 5. Bd2 {[%emt 0:00:11]} Be7 {[%emt 0:00:19]} 6. Bg2 {[%emt 0:00:10]} O-O {[%emt 0:00:05]} 7. O-O {[%emt 0:00:08]} c6 {[%emt 0:00:08]} 8. Qc2 {[%emt 0:00:07]} Nbd7 {[%emt 0:00:23]} 9. Bf4 {[%emt 0:03:47]} a5 {[%emt 0:01:09]} 10. cxd5 {[%emt 0:20:37]} exd5 {[%emt 0:03:50]} 11. Nc3 {[%emt 0:01:09]} Nh5 {[%emt 0:10:48]} 12. Bd2 {[%emt 0:03:01]} Re8 {[%emt 0:06:19]} 13. Rfe1 {[%emt 0:12:55]} Nhf6 {[%emt 0:06:21]} 14. Bf4 {[%emt 0:01:05]} Nf8 {[%emt 0:02:54]} 15. Rad1 {[%emt 0:06:09]} Ng6 {[%emt 0:13:06]} 16. Be5 {[%emt 0:12:24]} Ng4 {[%emt 0:15:21]} 17. h3 {[%emt 0:06:09]} N4xe5 {[%emt 0:01:05]} 18. dxe5 {[%emt 0:01:06]} Qb6 {[%emt 0:09:55]} 19. e4 {[%emt 0:05:26]} dxe4 {[%emt 0:00:28]} 20. Nxe4 {[%emt 0:01:02]} Be6 {[%emt 0:01:40]} 21. b3 {[%emt 0:03:43]} Bb4 {[%emt 0:02:34]} 22. Re2 {[%emt 0:07:59]} Bd5 {[%emt 0:00:39]} 23. Neg5 {[%emt 0:01:49]} Nf8 {[%emt 0:09:36]} 24. Nd4 {[%emt 0:02:04]} Rad8 {[%emt 0:03:34]} 25. Bxd5 {[%emt 0:05:20]} Rxd5 {[%emt 0:00:07]} 26. Ndf3 {[%emt 0:01:10]} h6 {[%emt 0:04:27]} 27. Ne4 {[%emt 0:01:28]} Red8 {[%emt 0:01:19]} 28. Nd6 {[%emt 0:02:08]} Bxd6 {[%emt 0:01:52]} 29. exd6 {[%emt 0:00:05]} R5xd6 {[%emt 0:01:42]} 30. Rxd6 {[%emt 0:00:18]} Rxd6 {[%emt 0:00:03]} 31. Re8 {[%emt 0:00:53]} Re6 {[%emt 0:02:10]} 32. Ra8 {[%emt 0:00:39]} Qb4 {[%emt 0:00:40]} 33. Qd2 {[%emt 0:01:30]} Qxd2 {[%emt 0:00:51]} 34. Nxd2 {[%emt 0:00:10]} Re2 {[%emt 0:00:59]} 35. Nc4 {[%emt 0:00:22]} Rxa2 {[%emt 0:01:05]} 36. Rxa5 {[%emt 0:00:48]} Rc2 {[%emt 0:00:24]} 37. Ra7 {[%emt 0:00:42]} b5 {[%emt 0:00:33]} 38. Nd6 {[%emt 0:00:36]} Ne6 {[%emt 0:00:35]} 39. Nxf7 {[%emt 0:00:19]} Nd4 {[%emt 0:00:27]} 40. b4 {[%emt 0:00:39]} Rc4 {[%emt 0:00:37]} 41. Ne5 {[%emt 0:16:36]} Rxb4 {[%emt 0:01:47]} 42. h4 {[%emt 0:02:45]} h5 {[%emt 0:05:00]} 43. Kg2 {[%emt 0:01:51]} Rb3 {[%emt 0:06:22]} 44. Rd7 {[%emt 0:02:07]} c5 {[%emt 0:05:14]} 45. Rd8+ {[%emt 0:00:59]} Kh7 {[%emt 0:00:05]} 46. Nd7 {[%emt 0:00:08]} 1/2-1/2

[Event "118th SUI-ch 2018"]
[Site "Lenzerheide"]
[Date "2018.07.13"]
[Round "2"]
[White "Gallagher, Joseph G"]
[Black "Gaehwiler, Gabriel"]
[Result "1/2-1/2"]
[ECO "C42"]
[WhiteElo "2434"]
[BlackElo "2419"]
[Annotator "NA"]
[PlyCount "93"]
[EventDate "2018.07.12"]
[EventType "tourn"]
[EventCountry "SUI"]
[SourceTitle "playchess.com"]
[Source "ChessBase"]
[SourceQuality "1"]
[TimeControl "40/5400+30:1800+30"]

1. e4 {[%emt 0:00:00]} e5 {[%emt 0:00:00]} 2. Nf3 {[%emt 0:00:00]} Nf6 {[%emt 0:00:00]} 3. Nxe5 {[%emt 0:00:49]} d6 {[%emt 0:00:00]} 4. Nf3 {[%emt 0:00:04]} Nxe4 {[%emt 0:00:05]} 5. d4 {[%emt 0:00:09]} d5 {[%emt 0:01:34]} 6. Bd3 {[%emt 0:00:43]} Nc6 {[%emt 0:06:03]} 7. O-O {[%emt 0:00:29]} Be7 {[%emt 0:00:08]} 8. c4 {[%emt 0:01:28]} Nb4 {[%emt 0:00:23]} 9. Be2 {[%emt 0:00:07]} dxc4 {[%emt 0:02:29]} 10. Bxc4 {[%emt 0:03:58]} O-O {[%emt 0:07:39]} 11. a3 {[%emt 0:19:34] C42: Petroff Defence: 3 Nxe5 and unusual White 3rd moves} Nd5 {[%emt 0:05:59] LiveBook: 6 Games} 12. Re1 {[%emt 0:00:15]} Nef6 {[%emt 0:12:42]} 13. Nc3 {[%emt 0:05:53]} c6 {[%emt 0:02:11]} 14. Qd3 {[%emt 0:02:43]} g6 $146 {[%emt 0:16:32]} ({Predecessor:} 14... a6 15. Ne5 Be6 16. Ba2 Nxc3 17. bxc3 Bxa2 18. Rxa2 Nd7 19. Nf3 Bf6 20. Rae2 b5 21. g4 h6 {1-0 (46) Cubas,J (2451)-Gonzalez,B (2257) Sao Paulo 2005}) 15. Bh6 {[%emt 0:07:22]} Bf5 {[%emt 0:01:09]} 16. Qd2 {[%emt 0:01:42]} Re8 {[%emt 0:00:18]} 17. Ne5 {[%emt 0:02:13]} Qd6 {[%emt 0:14:58]} 18. h3 {[%emt 0:04:57]} Be6 $14 {[%emt 0:08:02]} 19. Ba2 {[%emt 0:04:51]} Rad8 {[%emt 0:01:20]} 20. Rad1 {[%emt 0:02:37]} c5 {[%emt 0:08:27]} 21. Nxd5 {[%emt 0:07:22]} Bxd5 {[%emt 0:01:05]} 22. dxc5 {[%emt 0:00:38]} Qxc5 {[%emt 0:01:03]} 23. b4 {[%emt 0:00:28]} Qc8 {[%emt 0:03:40]} 24. Qb2 {[%emt 0:07:37]} Bxa2 {[%emt 0:01:20]} 25. Qxa2 {[%emt 0:00:22]} Qe6 {[%emt 0:00:11]} 26. Qxe6 {[%emt 0:02:31]} fxe6 {[%emt 0:00:02]} 27. Rxd8 {[%emt 0:03:08]} Rxd8 {[%emt 0:00:25]} 28. Nf3 {[%emt 0:02:13]} Rd6 {[%emt 0:03:53]} 29. Ng5 {[%emt 0:01:48]} e5 {[%emt 0:00:58]} 30. g3 {[%emt 0:00:19]} Nd7 {[%emt 0:00:34]} 31. Kg2 {[%emt 0:07:02]} Bxg5 {[%emt 0:01:18]} 32. Bxg5 {[%emt 0:00:03]} Kf7 {[%emt 0:00:31]} 33. Rc1 {[%emt 0:04:21]} Rc6 {[%emt 0:00:31]} 34. Rxc6 {[%emt 0:05:38]} bxc6 {[%emt 0:00:04]} 35. Kf3 {[%emt 0:00:17]} Ke6 {[%emt 0:00:44]} 36. Ke4 {[%emt 0:00:10]} Nb6 {[%emt 0:00:33]} 37. Be3 {[%emt 0:01:16]} Nc4 {[%emt 0:00:14]} 38. Bxa7 {[%emt 0:00:21]} Nxa3 {[%emt 0:00:17]} 39. Bc5 {[%emt 0:01:13]} Nb5 {[%emt 0:00:36]} 40. Bf8 {[%emt 0:00:28]} Kf7 {[%emt 0:01:13]} 41. Bc5 {[%emt 0:31:46]} Ke6 {[%emt 0:30:08]} 42. f4 {[%emt 0:00:00]} Nc3+ {[%emt 0:00:00]} 43. Kd3 {[%emt 0:00:00]} Na4 {[%emt 0:00:00]} 44. Kc4 {[%emt 0:00:00]} Nb2+ {[%emt 0:00:00]} 45. Kc3 {[%emt 0:00:00]} Na4+ {[%emt 0:00:00]} 46. Kc4 {[%emt 0:00:00]} Nb2+ {[%emt 0:00:00]} 47. Kc3 {[%emt 0:00:00]} 1/2-1/2

[Event "118th SUI-ch 2018"]
[Site "Lenzerheide"]
[Date "2018.07.13"]
[Round "2"]
[White "Ekstroem, Roland"]
[Black "Bogner, Sebastian"]
[Result "0-1"]
[ECO "E90"]
[WhiteElo "2381"]
[BlackElo "2605"]
[Annotator "ChessBase"]
[PlyCount "152"]
[EventDate "2018.07.12"]
[EventType "tourn"]
[EventCountry "SUI"]
[SourceTitle "playchess.com"]
[Source "ChessBase"]
[SourceQuality "1"]
[TimeControl "40/5400+30:1800+30"]

1. d4 {[%emt 0:00:00]} Nf6 {[%emt 0:00:00]} 2. c4 {[%emt 0:00:02]} g6 {[%emt 0:00:00]} 3. Nc3 {[%emt 0:00:25]} Bg7 {[%emt 0:00:00]} 4. e4 {[%emt 0:03:48]} d6 {[%emt 0:00:04]} 5. Nf3 {[%emt 0:01:00]} O-O {[%emt 0:00:09]} 6. h3 {[%emt 0:00:43]} Na6 {[%emt 0:01:18]} 7. Be3 {[%emt 0:03:45]} c5 {[%emt 0:00:18]} 8. d5 {[%emt 0:02:49]} e6 {[%emt 0:03:35]} 9. Bd3 {[%emt 0:02:06]} exd5 {[%emt 0:01:33]} 10. exd5 {[%emt 0:01:01]} Nc7 {[%emt 0:04:28]} 11. O-O {[%emt 0:01:08]} b5 {[%emt 0:03:25]} 12. cxb5 {[%emt 0:09:07]} Ncxd5 {[%emt 0:02:04]} 13. Nxd5 {[%emt 0:02:12]} Nxd5 {[%emt 0:00:10]} 14. Bg5 {[%emt 0:00:28]} Nf6 {[%emt 0:00:48]} 15. Be4 {[%emt 0:05:49]} Rb8 {[%emt 0:02:03]} 16. Bc6 {[%emt 0:00:24]} Bb7 {[%emt 0:17:15]} 17. Bxb7 {[%emt 0:17:29]} Rxb7 {[%emt 0:00:31]} 18. a4 {[%emt 0:00:13]} d5 {[%emt 0:11:15]} 19. Rc1 {[%emt 0:10:03]} Qd6 {[%emt 0:02:23]} 20. b4 {[%emt 0:01:48]} cxb4 {[%emt 0:21:20]} 21. Rc6 {[%emt 0:00:31]} Qd8 {[%emt 0:00:02]} 22. Qb3 {[%emt 0:03:12]} h6 {[%emt 0:01:52]} 23. Be3 {[%emt 0:11:40]} Re8 {[%emt 0:00:22]} 24. Qxb4 {[%emt 0:01:37]} Ne4 {[%emt 0:01:17]} 25. Rfc1 {[%emt 0:02:07]} Qd7 {[%emt 0:03:31]} 26. Bd4 {[%emt 0:00:50]} Bf8 {[%emt 0:08:07]} 27. Qb3 {[%emt 0:01:45]} Qf5 {[%emt 0:02:06]} 28. Qd3 {[%emt 0:01:57]} Ng3 {[%emt 0:04:37]} 29. Qxf5 {[%emt 0:01:42]} Nxf5 {[%emt 0:00:07]} 30. Bf6 {[%emt 0:00:41]} Re4 {[%emt 0:02:15]} 31. Ra6 {[%emt 0:01:46]} Rb6 {[%emt 0:04:58]} 32. g4 {[%emt 0:01:36]} Rxa6 {[%emt 0:00:46]} 33. bxa6 {[%emt 0:00:06]} Re6 {[%emt 0:00:36]} 34. Bd8 {[%emt 0:02:19]} Ng7 {[%emt 0:01:23]} 35. Rc7 {[%emt 0:09:07]} Rxa6 {[%emt 0:00:33]} 36. Rd7 {[%emt 0:00:19]} Rd6 {[%emt 0:01:29]} 37. Ne5 {[%emt 0:01:11]} Ne6 {[%emt 0:00:43]} 38. Bf6 {[%emt 0:00:13]} Rxd7 {[%emt 0:00:23]} 39. Nxd7 {[%emt 0:00:02]} Bd6 {[%emt 0:00:57]} 40. Kf1 {[%emt 0:01:45]} Nc5 {[%emt 0:00:41]} 41. Nxc5 {[%emt 0:30:30]} Bxc5 {[%emt 0:30:04]} 42. Ke2 {[%emt 0:00:22]} Kf8 {[%emt 0:00:31]} 43. f4 {[%emt 0:00:00]} Ke8 {[%emt 0:00:00]} 44. f5 {[%emt 0:00:00]} gxf5 {[%emt 0:00:00]} 45. gxf5 {[%emt 0:00:00]} Kd7 {[%emt 0:00:00]} 46. Kd3 {[%emt 0:00:00]} h5 {[%emt 0:00:00]} 47. Be5 {[%emt 0:00:00]} Kc6 {[%emt 0:00:00]} 48. Bc3 {[%emt 0:00:00]} Kd6 {[%emt 0:00:00]} 49. Bf6 {[%emt 0:00:00]} Bf2 {[%emt 0:00:00]} 50. Bg7 {[%emt 0:00:00]} Bb6 {[%emt 0:00:00]} 51. Bf6 {[%emt 0:00:00]} Bg1 {[%emt 0:00:00]} 52. Bg7 {[%emt 0:00:00]} a6 {[%emt 0:00:00]} 53. Bf6 {[%emt 0:00:00]} Bh2 {[%emt 0:00:00]} 54. Bb2 {[%emt 0:00:00]} Bg3 {[%emt 0:00:00]} 55. Bc3 {[%emt 0:00:00]} Kc5 {[%emt 0:00:00]} 56. Bd2 {[%emt 0:00:00]} d4 {[%emt 0:00:00]} 57. Ba5 {[%emt 0:00:00]} Bf4 {[%emt 0:00:00]} 58. Ke4 {[%emt 0:00:00]} Bh2 {[%emt 0:00:00]} 59. Kd3 {[%emt 0:00:00]} Bg3 {[%emt 0:00:00]} 60. Bd8 {[%emt 0:00:00]} Kb4 {[%emt 0:01:35]} 61. a5 {[%emt 0:00:00]} Bf2 {[%emt 0:01:28]} 62. Bb6 {[%emt 0:00:00]} Kb5 {[%emt 0:00:09]} 63. Bxd4 {[%emt 0:05:02]} Be1 {[%emt 0:00:03]} 64. Ke4 {[%emt 0:00:57]} Bxa5 {[%emt 0:00:03]} 65. Ke5 {[%emt 0:01:36]} Kc4 {[%emt 0:02:37]} 66. Ba1 {[%emt 0:00:30]} Kd3 {[%emt 0:01:33]} 67. Kf6 {[%emt 0:01:19]} Ke4 {[%emt 0:00:07]} 68. Kg5 {[%emt 0:02:40]} Bd2+ {[%emt 0:00:26]} 69. Kxh5 {[%emt 0:00:40]} Kxf5 {[%emt 0:00:06]} 70. Kh4 {[%emt 0:00:24]} Be1+ {[%emt 0:00:06]} 71. Kh5 {[%emt 0:00:04]} Bd2 {[%emt 0:00:26]} 72. Kh4 {[%emt 0:00:09]} a5 {[%emt 0:00:50]} 73. Kg3 {[%emt 0:00:37]} a4 {[%emt 0:00:13]} 74. Bb2 {[%emt 0:00:07]} Bb4 {[%emt 0:00:15]} 75. Kf3 {[%emt 0:00:15]} a3 {[%emt 0:00:03]} 76. Bc1 {[%emt 0:00:09]} a2 {[%emt 0:00:05]} 0-1

[Event "118th SUI-ch 2018"]
[Site "Lenzerheide"]
[Date "2018.07.17"]
[Round "6"]
[White "Georgiadis, Nico"]
[Black "Jenni, Florian"]
[Result "0-1"]
[ECO "A62"]
[WhiteElo "2526"]
[BlackElo "2447"]
[Annotator "RC"]
[PlyCount "90"]
[EventDate "2018.07.12"]
[EventType "tourn"]
[EventCountry "SUI"]
[SourceTitle "playchess.com"]
[Source "ChessBase"]
[SourceQuality "1"]
[TimeControl "40/5400+30:1800+30"]

1. d4 {[%emt 0:00:00]} Nf6 {[%emt 0:00:00]} 2. c4 {[%emt 0:00:00]} e6 {[%emt 0:00:01]} 3. Nf3 {[%emt 0:00:00]} c5 {[%emt 0:00:33]} 4. d5 {[%emt 0:00:03]} d6 {[%emt 0:00:36]} 5. Nc3 {[%emt 0:00:15]} exd5 {[%emt 0:00:23]} 6. cxd5 {[%emt 0:00:09]} g6 {[%emt 0:00:20]} 7. g3 {[%emt 0:03:06]} Bg7 {[%emt 0:01:31]} 8. Bg2 {[%emt 0:00:04]} O-O {[%emt 0:00:14]} 9. O-O {[%emt 0:00:04]} Re8 {[%emt 0:00:16]} 10. Re1 {[%emt 0:00:05]} a6 {[%emt 0:01:54]} 11. a4 {[%emt 0:00:34]} Nbd7 {[%emt 0:01:15]} 12. Bf4 {[%emt 0:01:51]} Ng4 {[%emt 0:07:49]} 13. Qc2 {[%emt 0:17:42]} Nde5 {[%emt 0:06:28]} 14. Nxe5 {[%emt 0:02:48]} Nxe5 {[%emt 0:01:52]} 15. h3 {[%emt 0:06:42]} Bf5 {[%emt 0:05:49]} 16. e4 {[%emt 0:03:29]} Bd7 {[%emt 0:00:14]} 17. a5 {[%emt 0:02:37]} Bb5 {[%emt 0:05:45]} 18. Red1 {[%emt 0:14:15]} h5 {[%emt 0:08:21]} 19. h4 {[%emt 0:10:45]} b6 {[%emt 0:08:57]} 20. axb6 {[%emt 0:07:21]} Qxb6 {[%emt 0:01:43]} 21. Rab1 {[%emt 0:05:11]} Bd7 {[%emt 0:04:35]} 22. b3 {[%emt 0:12:36]} Bg4 {[%emt 0:09:00]} 23. Re1 {[%emt 0:02:15]} Qb4 {[%emt 0:02:51]} 24. Bd2 {[%emt 0:02:46]} a5 {[%emt 0:08:37]} 25. Na4 {[%emt 0:01:10]} Qb5 {[%emt 0:01:34]} 26. Re3 {[%emt 0:00:54]} Rab8 {[%emt 0:02:39]} 27. Nc3 {[%emt 0:01:36]} Qa6 {[%emt 0:02:34]} 28. f4 {[%emt 0:01:50]} Nd7 {[%emt 0:00:51]} 29. Bf1 {[%emt 0:00:14]} Qb6 {[%emt 0:03:12]} 30. Kg2 {[%emt 0:00:26]} Re7 {[%emt 0:04:45]} 31. Bc4 {[%emt 0:01:21]} Bd4 {[%emt 0:00:58]} 32. Ree1 {[%emt 0:00:14]} Rbe8 {[%emt 0:03:19]} 33. Nb5 {[%emt 0:01:18]} Bg7 {[%emt 0:02:33]} 34. Re3 {[%emt 0:01:06]} Bd4 {[%emt 0:01:50]} 35. Ree1 {[%emt 0:00:04]} Bg7 {[%emt 0:00:36]} 36. Re3 {[%emt 0:01:26]} Kh7 {[%emt 0:00:32]} 37. Bc3 {[%emt 0:01:25]} Bd4 {[%emt 0:01:27]} 38. Ree1 {[%emt 0:00:25]} Nf6 {[%emt 0:00:42]} 39. Bxd4 {[%emt 0:00:42]} cxd4 {[%emt 0:00:13]} 40. Bd3 {[%emt 0:00:37]} Nxd5 {[%emt 0:00:21]} 41. Qd2 {[%emt 0:13:28]} Nf6 {[%emt 0:04:48]} 42. Ra1 {[%emt 0:02:46]} Nxe4 {[%emt 0:01:32]} 43. Qxa5 {[%emt 0:00:10]} Qb7 {[%emt 0:05:40]} 44. Qa7 {[%emt 0:01:21]} Qc6 {[%emt 0:07:21]} 45. Nxd4 {[%emt 0:09:59]} Qc3 {[%emt 0:01:09]} 0-1

[Event "118th SUI-ch 2018"]
[Site "Lenzerheide"]
[Date "2018.07.17"]
[Round "6"]
[White "Baenziger, Fabian"]
[Black "Ekstroem, Roland"]
[Result "1/2-1/2"]
[ECO "B25"]
[WhiteElo "2382"]
[BlackElo "2381"]
[Annotator "NA"]
[PlyCount "67"]
[EventDate "2018.07.12"]
[EventType "tourn"]
[EventCountry "SUI"]
[SourceTitle "playchess.com"]
[Source "ChessBase"]
[SourceQuality "1"]
[TimeControl "40/5400+30:1800+30"]

1. e4 {[%emt 0:00:00]} c5 {[%emt 0:00:00]} 2. Nc3 {[%emt 0:05:36]} g6 {[%emt 0:02:16]} 3. g3 {[%emt 0:01:23]} Bg7 {[%emt 0:00:15]} 4. Bg2 {[%emt 0:00:06]} Nc6 {[%emt 0:00:19]} 5. d3 {[%emt 0:00:06]} d6 {[%emt 0:02:09]} 6. f4 {[%emt 0:00:32]} e6 {[%emt 0:00:50]} 7. Nh3 {[%emt 0:01:00]} Nge7 {[%emt 0:00:34]} 8. O-O {[%emt 0:00:07]} O-O {[%emt 0:00:21]} 9. Be3 {[%emt 0:08:34]} Rb8 {[%emt 0:05:40] B25: Closed Sicilian: 3 g3, lines without early Be3} (9... b6 10. Bf2 Bb7 11. Qd2 Qd7 12. Rae1 Rae8 13. g4 f5 14. gxf5 exf5 15. Ng5 Nd4 16. Bxd4 Bxd4+ 17. Kh1 h6 18. Nf3 Bg7 19. Nh4 {½-½ (19) Zvjaginsev,V (2659)-Moiseenko,A (2630) Sochi 2007}) 10. Qd2 {[%emt 0:05:52] LiveBook: 5 Games} Nd4 {[%emt 0:04:46]} 11. Rae1 {[%emt 0:06:19]} b5 {[%emt 0:04:38]} 12. Nd1 {[%emt 0:09:22]} b4 {[%emt 0:02:04]} 13. c3 {[%emt 0:04:52]} bxc3 $146 {[%emt 0:03:31]} ({Predecessor:} 13... Ndc6 14. Nhf2 Qa5 {0-1 (41) Gustafson,D (2025)-Somogyi,I (2225) Budapest 1998}) 14. bxc3 {[%emt 0:00:57]} Ndc6 {[%emt 0:00:41]} 15. Bf2 {[%emt 0:05:29]} Qa5 {[%emt 0:05:16]} 16. g4 {[%emt 0:07:38]} f5 {[%emt 0:02:38]} 17. exf5 {[%emt 0:03:31]} exf5 {[%emt 0:00:40]} 18. Bh4 {[%emt 0:01:04]} (18. gxf5 $11 {hält das Gleichgewicht.} Bxf5 19. Ng5) 18... Qc7 {[%emt 0:12:57]} 19. Ne3 {[%emt 0:14:15]} fxg4 {[%emt 0:02:25]} 20. Nd5 {[%emt 0:00:19]} Nxd5 {[%emt 0:00:26]} 21. Bxd5+ {[%emt 0:00:04]} Kh8 {[%emt 0:00:22]} 22. Ng5 {[%emt 0:00:10]} Nd8 {[%emt 0:04:51]} 23. Nxh7 {[%emt 0:09:19]} Kxh7 {[%emt 0:04:50]} 24. Re7 {[%emt 0:00:08]} Qa5 {[%emt 0:04:39]} 25. Qe1 {[%emt 0:02:10]} Be6 $14 {[%emt 0:08:35]} (25... Nf7 $5) 26. Bg5 {[%emt 0:12:02]} Bxd5 {[%emt 0:05:58]} 27. Qh4+ {[%emt 0:00:04]} Kg8 {[%emt 0:00:08]} 28. Rxg7+ {[%emt 0:00:09]} Kxg7 {[%emt 0:00:05]} 29. Qh6+ {[%emt 0:00:04]} Kg8 {[%emt 0:00:25]} 30. Qxg6+ {[%emt 0:00:04]} Kh8 {[%emt 0:00:06]} 31. Qh6+ {[%emt 0:00:46]} Kg8 {[%emt 0:00:02]} 32. Qg6+ {[%emt 0:00:30]} Kh8 {[%emt 0:00:02]} 33. Qh6+ {[%emt 0:00:07]} Kg8 {[%emt 0:00:07]} 34. Qg6+ {[%emt 0:00:13]} 1/2-1/2

[Event "118th SUI-ch 2018"]
[Site "Lenzerheide"]
[Date "2018.07.18"]
[Round "7"]
[White "Kurmann, Oliver"]
[Black "Gaehwiler, Gabriel"]
[Result "0-1"]
[ECO "B92"]
[WhiteElo "2451"]
[BlackElo "2419"]
[Annotator "RC"]
[PlyCount "54"]
[EventDate "2018.07.12"]
[EventType "tourn"]
[EventCountry "SUI"]
[SourceTitle "playchess.com"]
[Source "ChessBase"]
[SourceQuality "1"]
[TimeControl "40/5400+30:1800+30"]

1. e4 {[%emt 0:00:00]} c5 {[%emt 0:00:00]} 2. Nf3 {[%emt 0:00:00]} d6 {[%emt 0:00:00]} 3. d4 {[%emt 0:00:00]} cxd4 {[%emt 0:00:00]} 4. Nxd4 {[%emt 0:00:00]} Nf6 {[%emt 0:00:00]} 5. Nc3 {[%emt 0:00:08]} a6 {[%emt 0:00:00]} 6. Be2 {[%emt 0:00:16]} e5 {[%emt 0:00:32]} 7. Nb3 {[%emt 0:00:10]} Be7 {[%emt 0:01:16]} 8. Be3 {[%emt 0:00:13]} Be6 {[%emt 0:12:49]} 9. Nd5 {[%emt 0:00:17]} Nbd7 {[%emt 0:07:33]} 10. Qd3 {[%emt 0:00:45]} Bxd5 {[%emt 0:13:07]} 11. exd5 {[%emt 0:00:03]} Nc5 {[%emt 0:12:52]} 12. Nxc5 {[%emt 0:01:31]} dxc5 {[%emt 0:03:25]} 13. c4 {[%emt 0:00:04]} O-O {[%emt 0:06:17]} 14. a4 {[%emt 0:20:03]} Ne8 {[%emt 0:07:05]} 15. g4 {[%emt 0:04:35]} Rc8 {[%emt 0:08:45]} 16. h4 {[%emt 0:01:55]} f5 {[%emt 0:11:55]} 17. gxf5 {[%emt 0:16:10]} Nd6 {[%emt 0:03:30]} 18. f6 {[%emt 0:07:24]} Bxf6 {[%emt 0:02:15]} 19. Bg4 {[%emt 0:00:03]} e4 {[%emt 0:00:20]} 20. Qc2 {[%emt 0:00:11]} Rc7 {[%emt 0:01:01]} 21. a5 {[%emt 0:00:56]} Bd4 {[%emt 0:04:22]} 22. Ra3 {[%emt 0:11:01]} Kh8 {[%emt 0:00:38]} 23. Be6 {[%emt 0:16:06]} Qf6 {[%emt 0:00:31]} 24. Rh2 {[%emt 0:01:31]} Bxb2 {[%emt 0:00:32]} 25. Bg5 {[%emt 0:02:08]} Qe5 {[%emt 0:00:45]} 26. Rb3 {[%emt 0:02:07]} Qxh2 {[%emt 0:00:23]} 27. Rxb2 {[%emt 0:00:02]} Qg1+ {[%emt 0:00:11]} 0-1